bitfinex/quotes_ETHUSD_20250129
["timestamp","ask_amount","ask_price","bid_price","bid_amount"]
[1738155235054,3.20461,3120.5,3119.8,3.20523]
[1738155235055,3.20461,3120.5,3119.9,3.20523]
[1738155235258,3.20461,3120.5,3120.1,0.06566165]
[1738155235456,3.20461,3120.5,3119.8,3.20523]
[1738155235656,3.20461,3120.5,3120.2,0.0656882]
[1738155235862,0.320461,3120.4,3120.0,3.2051]
[1738155236172,3.20461,3120.5,3120.3,0.06564673]
[1738155236473,6.20461,3120.5,3120.4,0.06560527]
[1738155236641,6.20461,3120.5,3120.0,3.2051]
[1738155236838,6.97181,3120.5,3120.4,0.06560527]
[1738155237181,6.97181,3120.5,3119.7,3.98147]
[1738155237182,3.20485,3120.3,3119.8,3.20526]
[1738155237546,3.20485,3120.3,3119.9,0.06581262]
[1738155239176,7.989492,3120.5,3119.9,0.06581262]
[1738155239177,0.7898,3120.0,3119.9,0.06581262]
[1738155239379,6.99492,3120.0,3119.9,0.06581262]
[1738155239578,3.2053,3119.9,3119.1,4.01872]
[1738155239780,6.99492,3120.0,3119.9,0.06591724]
[1738155240082,3.20549,3119.7,3119.1,7.22468]
[1738155240576,3.20549,3119.7,3119.2,3.20593]
[1738155240781,3.7898,3120.0,3119.4,3.20567]
[1738155240949,6.99497,3120.0,3119.5,3.20564]
[1738155241478,3.20529,3119.9,3119.3,3.20575]
[1738155241661,3.67035994,3119.9,3119.3,3.20575]
[1738155241845,3.20529,3119.9,3119.3,3.20575]
[1738155242282,3.20529,3119.9,3119.3,3.20578]
[1738155242799,3.20539,3119.8,3119.3,3.20578]
[1738155243795,3.20539,3119.8,3119.4,0.06629211]
[1738155244112,3.0,3119.9,3119.4,3.27197211]
[1738155244281,3.20528,3119.9,3119.4,0.06629211]
[1738155244595,3.97034894,3119.9,3119.4,0.06629211]
[1738155245161,3.20534,3119.8,3119.4,0.06629211]
[1738155245556,3.20534,3119.8,3119.2,3.2059]
[1738155245557,3.20544,3119.7,3119.2,3.2059]
[1738155245753,3.20544,3119.7,3119.5,0.06625063]
[1738155245982,3.20544,3119.7,3119.2,3.2059]
[1738155246188,3.20544,3119.7,3119.6,0.06620914]
[1738155246356,3.20544,3119.7,3119.2,3.2059]
[1738155246860,6.41059,3119.9,3119.3,3.27216361]
[1738155247289,3.20536,3119.8,3119.3,3.27216361]
[1738155249706,3.0,3119.9,3119.3,3.27211361]
[1738155249927,6.20523,3119.9,3119.4,3.20567]
[1738155250209,6.20523,3119.9,3119.4,3.27222378]
[1738155250442,3.20535,3119.8,3119.4,0.06655378]
[1738155250554,6.41077,3119.8,3119.4,0.06655378]
[1738155250754,3.20535,3119.8,3119.4,0.06655378]
[1738155252318,4.08557794,3119.9,3119.4,0.06655378]
[1738155252601,3.0,3119.9,3119.5,3.20564]
[1738155252976,3.0,3119.9,3119.6,0.06647081]
[1738155254804,4.02187,3120.3,3119.7,0.7787]
[1738155255007,4.02187,3120.3,3119.8,3.20532]
[1738155255235,4.02187,3120.3,3119.8,3.27170784]
[1738155256210,3.0,3120.2,3119.8,3.27170784]
[1738155256518,3.20493,3120.2,3119.8,0.06638784]
[1738155256697,0.817,3120.3,3119.8,0.06638784]
[1738155257002,6.40997,3120.2,3119.6,3.20553]
[1738155257185,3.20497,3120.2,3119.9,0.06643011]
[1738155257381,3.20497,3120.2,3119.7,3.20537]
[1738155257886,3.20497,3120.2,3119.8,0.06647158]
[1738155258282,3.20497,3120.2,3119.7,3.20537]
[1738155258472,3.20497,3120.2,3119.9,0.06643011]
[1738155258684,0.817,3120.3,3119.9,0.06643011]
[1738155258685,6.20476,3120.4,3119.9,3.20519]
[1738155258876,6.20476,3120.4,3120.0,3.27148863]
[1738155260208,0.7698,3120.5,3120.1,3.20496]
[1738155260413,3.20451,3120.6,3120.1,3.20497]
[1738155260711,3.20451,3120.6,3120.2,0.06630569]
[1738155261086,6.20451,3120.6,3120.2,0.06630569]
[1738155261410,3.20448,3120.7,3120.2,3.27113569]
[1738155261584,0.8231,3120.8,3120.2,3.27113569]
[1738155261785,0.8231,3121.0,3120.5,3.20461]
[1738155262113,0.62656753,3120.8,3120.6,0.06586246]
[1738155262408,3.0,3121.0,3120.6,3.27035246]
[1738155262610,6.2041,3121.0,3120.6,3.27035246]
[1738155263109,3.0,3121.0,3120.6,3.27035246]
[1738155263474,6.20412,3121.0,3120.6,0.06586246]
[1738155264091,3.20421,3120.9,3120.6,0.06586246]
[1738155264296,3.20421,3120.9,3120.4,3.20469]
[1738155264616,3.20421,3120.9,3120.7,0.0656431]
[1738155264911,3.20421,3120.9,3120.8,0.06560164]
[1738155265213,7.20990575,3120.9,3120.8,0.06560164]
[1738155265413,7.20990575,3120.9,3120.3,4.01655]
[1738155265715,6.20421,3120.9,3120.4,0.06576748]
[1738155266718,3.0,3120.9,3120.4,0.06576748]
[1738155266892,3.20431,3120.8,3120.4,0.06576748]
[1738155267402,3.20461,3120.5,3120.4,0.06576748]
[1738155267803,3.20477,3120.4,3119.8,7.21026]
[1738155268024,3.20477,3120.4,3119.8,7.931286]
[1738155268227,3.20461,3120.5,3119.9,3.20515]
[1738155269949,3.20461,3120.5,3120.0,3.20506]
[1738155270131,3.20461,3120.5,3119.8,1.520726]
[1738155270342,1.45092954,3120.7,3119.8,0.7997]
[1738155270343,3.20499,3120.2,3119.8,0.7997]
[1738155273627,3.20499,3120.2,3119.8,4.00503]
[1738155273845,3.0,3120.4,3120.0,3.20512]
[1738155274055,3.0,3120.4,3119.9,0.06578121]
[1738155274262,3.0,3120.4,3120.1,3.27069826]
[1738155274550,6.20462,3120.5,3120.2,0.06565679]
[1738155274914,6.20462,3120.5,3119.9,3.20516]
[1738155275117,6.20462,3120.5,3120.3,0.06581415]
[1738155275315,6.20462,3120.5,3120.0,3.20512]
[1738155275592,3.20472,3120.4,3119.9,3.20522]
[1738155275797,6.20462,3120.5,3120.0,3.20507]
[1738155275969,9.40932,3120.5,3120.0,3.20507]
[1738155276171,3.20482,3120.3,3119.8,4.00495]
[1738155276957,3.20482,3120.3,3119.8,4.405445]
[1738155277166,9.40932,3120.5,3119.9,3.20517]
[1738155277966,3.20473,3120.4,3119.9,3.20517]
[1738155278706,3.20473,3120.4,3119.8,4.405445]
[1738155278707,3.20437,3120.8,3120.2,3.20484]
[1738155279199,3.0,3120.7,3120.3,3.20479]
[1738155279363,3.0,3120.7,3120.3,3.927803]
[1738155279565,3.0,3120.7,3120.4,3.20471]
[1738155279759,3.99365,3121.0,3120.3,0.723013]
[1738155279760,0.7895,3121.0,3120.6,0.8057]
[1738155279961,6.40754,3121.4,3120.8,3.20423]
[1738155280168,3.20387,3121.3,3120.7,3.20434]
[1738155280373,3.0,3121.1,3120.7,3.20434]
[1738155280591,6.20401,3121.1,3120.6,0.8057]
[1738155281865,6.20401,3121.1,3120.6,4.01016]
[1738155282717,6.20401,3121.1,3120.6,4.52936921]
[1738155283497,6.20389,3121.2,3120.7,3.2044]
[1738155283898,3.0,3121.2,3120.8,3.20422]
[1738155284071,3.83311407,3121.5,3120.9,3.20418]
[1738155284494,6.20375,3121.4,3120.9,3.20418]
[1738155286705,3.0,3121.2,3120.9,3.20418]
[1738155287909,3.0,3121.4,3120.9,3.20418]
[1738155288208,3.0,3121.4,3121.1,0.7673]
[1738155288712,6.20369,3121.4,3121.2,0.06469296]
[1738155289210,6.20369,3121.4,3120.8,3.98443]
[1738155289706,3.0,3121.4,3120.8,3.98443]
[1738155289906,3.0,3121.2,3120.9,0.06481729]
[1738155298218,3.20402,3121.1,3120.9,0.06481729]
[1738155298522,3.20425,3120.9,3120.4,3.97316]
[1738155299520,3.20425,3120.9,3120.5,3.2046]
[1738155300583,3.20425,3120.9,3120.4,3.97316]
[1738155300584,3.20425,3120.9,3120.4,0.7685]
[1738155300707,3.20457,3120.6,3120.1,0.8291]
[1738155300909,3.20488,3120.3,3119.9,0.8291]
[1738155301110,3.20488,3120.3,3119.7,0.8291]
[1738155301422,3.20492,3120.2,3119.7,0.8291]
[1738155302212,3.20492,3120.2,3119.7,4.03448]
[1738155302623,3.96077,3120.5,3119.7,0.8291]
[1738155302830,3.20486,3120.3,3119.8,3.20533]
[1738155303141,0.7561,3120.5,3120.0,3.20512]
[1738155303142,3.96074,3120.5,3120.0,3.20512]
[1738155303842,7.02762,3120.7,3120.2,3.20487]
[1738155304006,3.0,3120.5,3120.1,0.06333942]
[1738155304213,3.0,3120.5,3120.3,0.06325649]
[1738155304412,3.0,3120.5,3120.2,0.06329795]
[1738155304619,3.0,3120.5,3120.4,0.06321502]
[1738155304825,3.0,3120.5,3120.3,0.06325649]
[1738155305047,3.0,3120.5,3120.4,0.06321502]
[1738155305232,6.20461,3120.5,3120.4,0.06321502]
[1738155305549,6.20461,3120.5,3120.4,0.06318363]
[1738155305962,0.7687,3120.4,3120.0,3.20503]
[1738155306869,0.7687,3120.4,3120.0,3.20505]
[1738155307354,0.7687,3120.4,3120.0,6.4101]
[1738155307562,0.7687,3120.4,3120.0,3.20505]
[1738155310170,0.7687,3120.4,3119.8,3.20527]
[1738155310336,3.20493,3120.2,3119.6,3.20545]
[1738155310537,3.20493,3120.2,3119.7,0.672304]
[1738155311575,3.20493,3120.2,3119.7,3.877734]
[1738155311738,3.20493,3120.2,3119.7,3.20543]
[1738155313368,3.20491,3120.3,3119.5,3.20559]
[1738155313634,3.20505,3120.1,3119.6,3.20551]
[1738155314078,6.40982,3120.3,3119.6,3.20551]
[1738155314270,6.40982,3120.3,3119.7,3.20541]
[1738155314609,6.4098,3120.3,3119.7,3.20541]
[1738155314783,3.20489,3120.3,3119.7,3.20541]
[1738155315377,6.40979,3120.3,3119.7,3.20541]
[1738155315989,3.20494,3120.2,3119.7,3.20541]
[1738155316385,0.8127,3119.8,3118.7,0.8221]
[1738155316584,3.20557,3119.6,3118.9,3.20624]
[1738155316813,3.20575,3119.4,3118.9,3.20619]
[1738155317022,0.8127,3119.5,3118.7,4.0285]
[1738155317023,3.20586,3119.3,3118.7,4.0285]
[1738155317188,6.4118,3119.3,3118.7,4.0285]
[1738155317392,3.20575,3119.4,3118.9,3.20617]
[1738155317630,3.8127,3119.5,3119.2,3.20589]
[1738155317990,3.8127,3119.5,3119.0,3.20605]
[1738155318327,3.8127,3119.5,3118.7,4.43135]
[1738155318618,3.2058,3119.4,3118.8,3.20627]
[1738155318850,3.2058,3119.4,3118.8,3.27042082]
[1738155319049,6.41163,3119.4,3118.8,3.27042082]
[1738155319183,0.8127,3119.5,3118.8,0.06415082]
[1738155319384,3.20574,3119.4,3118.8,3.27043082]
[1738155319589,3.20574,3119.4,3118.9,3.20625]
[1738155319789,3.8127,3119.5,3119.0,3.20611]
[1738155320013,3.8127,3119.5,3119.0,3.27071168]
[1738155320014,7.01834,3119.5,3119.0,3.27071168]
[1738155320295,10.22407,3119.5,3119.0,3.27071168]
[1738155320727,7.01834,3119.5,3119.0,3.27071168]
[1738155320890,7.01636796,3119.5,3119.0,6.47679168]
[1738155321090,7.01636796,3119.5,3119.0,3.27068168]
[1738155321291,0.81072796,3119.5,3119.1,3.20598]
[1738155321514,0.81072796,3119.5,3119.2,0.06451869]
[1738155321515,3.20574,3119.4,3119.2,0.06451869]
[1738155321718,3.20574,3119.4,3118.9,3.20623]
[1738155321912,6.20574,3119.4,3119.3,0.06447719]
[1738155322120,6.20574,3119.4,3118.9,3.526853]
[1738155322121,3.0,3119.4,3119.0,3.20614]
[1738155322323,3.0,3119.4,3119.3,0.06447719]
[1738155322493,3.0,3119.4,3119.0,3.20608]
[1738155322824,3.0,3119.4,3119.1,0.06456018]
[1738155327165,0.7579,3119.8,3119.4,3.20574]
[1738155327609,0.7579,3119.8,3119.5,0.06486004]
[1738155327817,3.20553,3119.6,3119.5,0.06486004]
[1738155328038,3.20572,3119.5,3118.9,3.20615]
[1738155328238,6.96343,3119.6,3119.5,0.06486004]
[1738155328443,3.20605,3119.1,3118.6,3.20656]
[1738155328625,3.20591,3119.3,3118.8,3.2063]
[1738155328801,3.20591,3119.3,3118.9,3.20625]
[1738155328997,3.20591,3119.3,3118.9,3.27127524]
[1738155329411,5.19030977,3119.3,3118.9,3.27127524]
[1738155330461,1.98439977,3119.3,3118.9,3.27127524]
[1738155331710,1.98439977,3119.3,3119.1,3.20604]
[1738155331907,1.98439977,3119.3,3119.2,0.06498975]
[1738155332511,0.8066,3119.5,3119.2,0.06498975]
[1738155333253,0.8066,3119.5,3119.2,3.27093975]
[1738155333540,3.7583,3119.8,3119.3,3.20578]
[1738155333743,6.96363,3119.8,3119.3,3.20578]
[1738155334038,6.96363,3119.8,3119.4,0.06483347]
[1738155335308,3.0,3119.9,3119.4,3.27056347]
[1738155335506,1.98409238,3119.5,3119.4,3.27056347]
[1738155335708,1.98409238,3119.5,3119.4,3.91819782]
[1738155335949,9.01783238,3119.5,3119.4,0.06483347]
[1738155336442,3.0,3119.4,3118.7,4.02186]
[1738155336642,3.20585,3119.3,3118.7,7.22826]
[1738155336842,3.20585,3119.3,3118.8,0.06054745]
[1738155337043,3.20585,3119.3,3118.8,3.26688745]
[1738155337346,3.20585,3119.3,3118.9,0.06050595]
[1738155338147,6.41176,3119.3,3118.9,0.06050595]
[1738155338308,3.20585,3119.3,3118.9,0.06050595]
[1738155338711,1.98409238,3119.0,3118.9,0.06050595]
[1738155339639,1.98409238,3119.0,3118.9,3.26675595]
[1738155340464,1.98409238,3119.0,3118.9,3.99561555]
[1738155340767,1.98409238,3119.0,3118.9,4.82861555]
[1738155341688,3.98931,3119.9,3119.3,3.20576]
[1738155341990,3.98931,3119.9,3119.4,3.26602847]
[1738155342282,3.0,3120.0,3119.6,3.20548]
[1738155342579,3.0,3120.0,3119.7,0.06017401]
[1738155343214,3.0,3120.0,3119.7,3.26558401]
[1738155343351,0.7775,3120.2,3119.7,3.91589573]
[1738155343862,3.7775,3120.2,3119.7,0.71048573]
[1738155344089,6.98247,3120.2,3119.7,0.71048573]
[1738155348284,3.7775,3120.2,3119.7,0.71048573]
[1738155348588,3.20467,3120.5,3119.9,3.98507]
[1738155349046,3.20473,3120.4,3120.0,0.05986661]
[1738155350652,3.0,3120.7,3120.0,0.09191612]
[1738155350846,6.20442,3120.7,3120.1,3.20496]
[1738155351088,6.20442,3120.7,3120.1,3.93315161]
[1738155351352,3.0,3120.5,3120.2,0.05978366]
[1738155353069,0.8076,3121.0,3120.3,3.95546]
[1738155353412,3.20406,3121.1,3120.5,3.20459]
[1738155353558,3.0,3121.0,3120.6,0.32638883]
[1738155353905,3.0,3121.0,3120.6,3.59009418]
[1738155355295,0.8076,3121.2,3120.8,4.02449]
[1738155355296,3.0,3121.2,3120.8,4.02449]
[1738155355660,3.0,3121.2,3120.9,0.05909099]
[1738155355860,6.20397,3121.2,3120.9,0.05909099]
[1738155356306,3.0,3121.2,3120.9,0.05909099]
[1738155357210,6.20391,3121.2,3120.9,0.05909099]
[1738155359905,3.20365,3121.5,3121.0,3.20405]
[1738155360076,3.20377,3121.4,3121.1,0.05830793]
[1738155360404,3.20377,3121.4,3120.9,3.6125291]
[1738155360606,3.20377,3121.4,3121.2,0.05826648]
[1738155360768,3.20377,3121.4,3120.9,3.6125291]
[1738155361101,3.20377,3121.4,3121.3,0.05822504]
[1738155361602,0.8013,3121.3,3120.6,0.7651]
[1738155361767,3.20418,3121.0,3120.6,0.7651]
[1738155361967,0.8013,3120.9,3120.5,0.07]
[1738155362171,3.20437,3120.8,3120.5,0.07]
[1738155362370,3.20442,3120.7,3120.5,0.07]
[1738155362568,3.20437,3120.8,3120.5,0.07]
[1738155363009,6.40875,3120.8,3120.5,0.07]
[1738155363167,3.20437,3120.8,3120.5,0.07]
[1738155363796,3.20437,3120.8,3120.6,0.05642282]
[1738155364382,4.00552,3120.9,3120.6,0.05642282]
[1738155364589,0.8013,3120.9,3120.6,0.05642282]
[1738155364887,1.98486553,3120.7,3120.6,0.05642282]
[1738155365091,1.98486553,3120.7,3120.4,3.20471]
[1738155365409,1.98486553,3120.7,3120.5,0.05646428]
[1738155365732,1.98486553,3120.7,3120.5,3.58717171]
[1738155365884,1.98486553,3120.7,3120.6,3.99961]
[1738155366280,1.98486553,3120.7,3120.6,0.85152282]
[1738155366475,1.98486553,3120.7,3120.6,0.05642282]
[1738155367985,1.98486553,3120.8,3120.6,0.05642282]
[1738155368279,5.18923553,3120.8,3120.6,0.05642282]
[1738155368482,4.0348,3120.7,3120.1,4.27999]
[1738155368686,4.0348,3120.7,3120.1,4.27996]
[1738155368903,4.0348,3120.7,3120.2,0.05658867]
[1738155369110,4.48113279,3120.7,3120.2,0.05658867]
[1738155369407,4.01142,3120.3,3119.6,3.96649]
[1738155369621,4.01142,3120.3,3119.7,6.41078]
[1738155369822,4.01142,3120.3,3119.7,3.20536]
[1738155369823,7.21633,3120.3,3119.7,3.20536]
[1738155370024,3.20495,3120.2,3119.7,3.20536]
[1738155371627,1.98486553,3120.3,3119.7,3.20536]
[1738155371830,1.98486553,3120.3,3119.9,3.20521]
[1738155372128,5.18969553,3120.3,3119.7,3.20536]
[1738155372695,5.18969553,3120.3,3119.7,6.41074]
[1738155372897,5.18969553,3120.3,3119.7,3.20536]
[1738155373097,5.18969553,3120.3,3119.8,3.20529]
[1738155373995,1.98486553,3120.1,3119.6,3.96645]
[1738155374294,1.98486553,3120.1,3119.7,3.20541]
[1738155377222,1.98486553,3120.0,3119.7,3.20541]
[1738155377922,1.98486553,3120.0,3119.6,3.96645]
[1738155378138,1.98486553,3120.0,3119.9,3.20523]
[1738155378497,1.98486553,3120.0,3119.9,3.95973]
[1738155378698,1.98486553,3120.0,3119.9,4.01719024]
[1738155379697,1.98486553,3120.1,3119.9,4.01719024]
[1738155380214,1.98486553,3120.1,3119.9,0.81196024]
[1738155380949,1.98486553,3120.1,3119.9,4.01714024]
[1738155381434,1.98486553,3120.1,3119.9,0.81196024]
[1738155381639,1.98486553,3120.1,3119.9,0.05746024]
[1738155382841,1.98486553,3120.0,3119.9,0.05746024]
[1738155383649,1.91486553,3120.0,3119.9,0.05746024]
[1738155385316,1.91486553,3120.0,3119.7,3.9811]
[1738155385521,1.91486553,3120.0,3119.8,0.05743378]
[1738155385717,1.91486553,3120.0,3119.8,3.20531]
[1738155385931,1.91486553,3120.0,3119.9,0.0573923]
[1738155386808,3.20488,3120.3,3119.9,0.0573923]
[1738155387640,6.40976,3120.3,3119.9,0.0573923]
[1738155388341,3.20488,3120.3,3119.9,0.0573923]
[1738155388545,0.7847,3120.7,3120.1,0.7793]
[1738155388710,0.7847,3121.0,3120.5,3.20454]
[1738155388907,0.7847,3121.0,3120.6,0.7793]
[1738155389110,3.98883,3121.0,3120.6,0.83633932]
[1738155389333,3.0,3120.9,3120.6,0.83633932]
[1738155389546,3.20421,3120.9,3120.6,0.05703932]
[1738155389841,4.223518,3120.9,3120.6,0.05703932]
[1738155390233,4.00580932,3120.9,3120.4,3.97499]
[1738155390429,3.2043,3120.8,3120.7,0.05699264]
[1738155390629,4.00578932,3120.9,3120.2,3.20486]
[1738155390940,3.2043,3120.8,3120.4,0.833]
[1738155391331,3.2043,3120.8,3120.5,0.05688224]
[1738155392830,3.20451,3120.6,3120.5,0.05688224]
[1738155393030,3.97001,3120.6,3120.5,0.05688224]
[1738155393347,3.20484,3120.3,3119.7,0.7783]
[1738155393544,3.20464,3120.5,3119.8,3.20531]
[1738155393750,3.20472,3120.4,3119.9,3.20521]
[1738155394138,3.20472,3120.4,3120.0,0.05707913]
[1738155395658,3.0,3120.4,3120.0,0.05707913]
[1738155395817,3.0,3120.4,3120.0,3.26217913]
[1738155398263,3.84171656,3120.7,3120.2,0.8065]
[1738155398551,3.0,3120.6,3120.2,0.8065]
[1738155398749,3.0,3120.6,3120.3,0.0570017]
[1738155399054,3.20414,3121.0,3120.5,3.2046]
[1738155399356,4.03715,3121.2,3120.7,3.20437]
[1738155399563,3.0,3121.1,3120.8,0.05680486]
[1738155399777,3.0,3121.1,3120.7,3.20437]
[1738155399959,3.0,3121.1,3120.9,0.05676341]
[1738155400164,3.0,3121.1,3120.7,3.20437]
[1738155400369,3.0,3121.1,3120.8,0.05680486]
[1738155400677,3.0,3121.3,3120.8,3.20424]
[1738155400830,3.0,3121.3,3120.9,0.05676341]
[1738155401463,4.023683,3121.3,3120.9,0.05676341]
[1738155401760,7.227473,3121.3,3120.9,0.05676341]
[1738155402463,0.8293,3121.5,3120.9,0.05676341]
[1738155402766,3.20391,3121.2,3120.6,4.01752]
[1738155402952,3.20391,3121.2,3120.7,0.05654331]
[1738155403298,3.20391,3121.2,3120.7,3.26089331]
[1738155403629,6.4075,3121.4,3120.8,3.20427]
[1738155403831,3.0,3121.3,3120.8,3.20427]
[1738155404048,3.0,3121.3,3120.9,0.05646041]
[1738155404455,6.20385,3121.3,3120.9,0.05646041]
[1738155404655,7.22754,3121.3,3120.9,0.05646041]
[1738155406667,3.20401,3121.1,3120.9,0.05646041]
[1738155406868,3.20401,3121.1,3120.6,4.01754]
[1738155407077,6.20385,3121.3,3121.0,0.05641896]
[1738155407278,6.20385,3121.3,3120.7,3.20439]
[1738155407483,6.20385,3121.3,3121.1,0.05637751]
[1738155407666,6.20385,3121.3,3120.7,3.20439]
[1738155407873,9.40773,3121.3,3121.2,0.05633607]
[1738155408073,9.40773,3121.3,3120.7,3.20439]
[1738155408297,9.40773,3121.3,3121.2,0.05633607]
[1738155408585,6.20385,3121.3,3121.2,0.05633607]
[1738155408889,3.2039,3121.2,3120.6,4.0176]
[1738155409063,3.20402,3121.1,3120.6,4.739824]
[1738155409258,3.95812,3121.1,3120.6,4.739824]
[1738155411667,0.7541,3121.1,3120.2,0.7581]
[1738155411968,0.7541,3121.1,3120.3,3.20481]
[1738155411969,3.20438,3120.8,3120.3,3.20481]
[1738155412280,3.20428,3120.9,3120.2,0.7581]
[1738155412452,3.20443,3120.7,3120.2,3.96298]
[1738155412647,3.20443,3120.7,3120.3,0.396298]
[1738155412876,3.20432,3120.8,3120.3,3.601048]
[1738155416398,7.03479269,3121.0,3120.4,3.20467]
[1738155416601,3.20422,3120.9,3120.4,3.20467]
[1738155421066,0.7541,3121.1,3120.4,3.20467]
[1738155421267,3.0,3121.3,3120.8,0.8154]
[1738155421601,6.20384,3121.3,3120.8,4.01965]
[1738155421807,6.20384,3121.3,3120.6,3.20444]
[1738155421808,3.0,3121.1,3120.6,4.02424]
[1738155422101,3.0,3121.1,3120.6,7.22869]
[1738155422303,3.0,3121.1,3120.4,3.20461]
[1738155422304,4.00205,3121.0,3120.4,3.20461]
[1738155422605,4.00205,3121.0,3120.4,6.729681]
[1738155422788,4.00205,3121.0,3120.5,3.20457]
[1738155422996,0.7979,3121.0,3120.6,4.00805]
[1738155423199,3.0,3121.1,3120.6,4.00805]
[1738155423504,3.2041,3121.0,3120.6,0.8036]
[1738155423681,3.2041,3121.0,3120.5,3.20458]
[1738155423875,3.2041,3121.0,3120.7,0.05633959]
[1738155424074,3.2041,3121.0,3120.6,0.05638105]
[1738155424274,3.2041,3121.0,3120.8,0.05629814]
[1738155424474,3.2041,3121.0,3120.7,0.05633959]
[1738155424701,3.2041,3121.0,3120.9,0.05625669]
[1738155424895,3.2041,3121.0,3120.8,0.05629814]
[1738155425066,3.2041,3121.0,3120.5,3.20458]
[1738155425067,3.2041,3121.0,3120.9,0.05625669]
[1738155425777,3.2041,3121.0,3120.5,3.20458]
[1738155425984,3.2041,3121.0,3120.6,0.05638105]
[1738155429077,3.0,3121.1,3120.8,3.20423]
[1738155429274,0.7572,3121.4,3121.0,3.20403]
[1738155429701,3.0,3121.4,3121.1,3.26023166]
[1738155429908,3.0,3121.4,3121.1,0.05624166]
[1738155430210,3.20384,3121.3,3120.9,0.7979]
[1738155430399,3.20384,3121.3,3121.2,0.05620022]
[1738155430597,3.20384,3121.3,3120.9,0.79592795]
[1738155430811,3.0,3121.4,3121.2,0.05620022]
[1738155430989,3.0,3121.4,3120.9,4.00006795]
[1738155431190,3.0,3121.4,3121.0,0.05628311]
[1738155432213,0.8078,3121.3,3121.0,0.05628311]
[1738155432414,4.01165,3121.3,3121.0,0.05628311]
[1738155432614,7.21552,3121.3,3120.8,3.20425]
[1738155432921,7.21552,3121.3,3121.1,0.05624166]
[1738155432922,4.01165,3121.3,3121.1,0.05624166]
[1738155433076,4.01165,3121.3,3120.8,3.20425]
[1738155433275,10.21552,3121.3,3121.2,0.05620022]
[1738155433479,10.21552,3121.3,3120.8,3.97015]
[1738155433676,7.01159,3121.3,3121.2,0.05620022]
[1738155433880,3.20417,3121.0,3120.5,0.7659]
[1738155434420,3.20417,3121.0,3120.6,0.05634446]
[1738155434993,3.20391,3121.2,3120.6,6.46524446]
[1738155435313,3.8078,3121.3,3120.8,3.2043]
[1738155435498,7.01161,3121.3,3120.8,3.2043]
[1738155435684,7.01161,3121.3,3120.9,0.05622009]
[1738155435880,3.0,3121.3,3120.9,4.08840009]
[1738155436299,6.2038,3121.3,3120.9,0.88422009]
[1738155436715,3.20396,3121.2,3120.9,0.05622009]
[1738155437019,3.20396,3121.2,3120.7,4.0074]
[1738155437225,3.20396,3121.2,3121.0,0.05617865]
[1738155437444,3.20396,3121.2,3120.7,4.0074]
[1738155437587,3.20396,3121.2,3121.1,0.0561372]
[1738155437791,4.144731,3121.2,3120.7,4.0074]
[1738155438005,3.20396,3121.2,3120.8,0.05626155]
[1738155438394,3.20396,3121.2,3120.7,4.0074]
[1738155438595,3.20396,3121.2,3120.8,0.05616754]
[1738155438794,3.20396,3121.2,3120.7,4.0074]
[1738155439006,3.20396,3121.2,3120.8,0.05616754]
[1738155439225,4.144731,3121.2,3120.8,0.05616754]
[1738155439426,3.204,3121.1,3120.7,0.803]
[1738155439618,3.204,3121.1,3120.9,0.05613131]
[1738155439619,0.7918,3121.0,3120.9,0.05613131]
[1738155439818,0.7918,3121.0,3120.6,6.40892]
[1738155440016,6.95856,3121.3,3120.6,3.20445]
[1738155440221,6.95856,3121.3,3120.9,0.8187]
[1738155440436,7.654416,3121.3,3120.9,0.8187]
[1738155440605,7.654416,3121.3,3121.0,0.05608986]
[1738155440832,6.899716,3121.3,3121.0,0.05608986]
[1738155443138,3.20398,3121.2,3121.0,0.05608986]
[1738155443505,3.20398,3121.2,3120.7,0.8277]
[1738155443802,1.0103696,3121.1,3120.7,0.8277]
[1738155444043,4.2144096,3121.1,3120.7,0.8277]
[1738155444220,3.96796,3121.0,3120.4,3.98316]
[1738155444540,3.20488,3120.3,3119.8,0.7785]
[1738155445043,3.20488,3120.3,3119.4,0.297]
[1738155445044,3.20502,3120.1,3119.6,3.98402]
[1738155445442,3.20513,3120.0,3119.6,0.7785]
[1738155445610,3.20518,3120.0,3119.6,0.7785]
[1738155446743,3.84619,3120.0,3119.3,6.41151]
[1738155447040,4.61159,3120.0,3119.4,3.20568]
[1738155447824,3.20533,3119.8,3119.3,4.01525]
[1738155448036,3.0,3119.9,3119.3,3.20581]
[1738155448230,3.2053,3119.9,3119.4,3.20568]
[1738155448428,0.761171,3119.9,3119.5,3.20562]
[1738155448743,3.761171,3119.9,3119.5,3.96122]
[1738155449545,3.761171,3119.9,3119.5,0.7556]
[1738155450837,3.761171,3119.9,3119.3,3.20577]
[1738155451038,6.966411,3119.9,3119.3,3.20577]
[1738155451738,0.761171,3119.9,3119.3,0.0320558]
[1738155451939,0.7996,3120.3,3119.8,3.20531]
[1738155452114,0.7996,3120.3,3119.6,3.20552]
[1738155452442,4.00447,3120.3,3119.6,6.41096]
[1738155452740,4.00447,3120.3,3119.4,0.8217]
[1738155452741,3.0,3120.0,3119.4,0.8217]
[1738155453046,3.2054,3119.8,3119.4,0.8217]
[1738155453359,3.20561,3119.6,3119.1,0.8317]
[1738155453751,3.20561,3119.6,3119.2,0.05245033]
[1738155453914,4.00845,3119.8,3119.2,3.25839033]
[1738155454315,3.20555,3119.6,3119.2,0.05245033]
[1738155455018,4.00845,3119.8,3119.2,0.05245033]
[1738155455019,7.21387,3119.8,3119.2,0.05245033]
[1738155455220,0.751387,3119.7,3119.2,3.25832033]
[1738155455426,0.8031,3119.8,3119.2,3.25832033]
[1738155455625,0.8031,3119.8,3119.3,3.20578]
[1738155456011,0.8031,3119.8,3119.4,0.05242485]
[1738155456916,4.00843,3119.8,3119.4,0.05242485]